fUST/lending_fUST_20250812
["ID","MTS","AMOUNT","RATE_DAILY","PERIOD"]
[378727682,1754993438066,-289.15,0.00018221,3]
[378727683,1754993438076,-867.49,0.00018221,3]
[378727684,1754993438085,-347.66013676,0.00018228,2]
[378727685,1754993438094,-460.0,0.00018228,2]
[378727686,1754993438103,-91.9528366,0.00018229,2]
[378727687,1754993438113,-637.48,0.00018229,2]
[378727688,1754993438122,-460.0,0.00018229,2]
[378727689,1754993438132,-3358.23,0.00018229,2]
[378727690,1754993438141,-814.25,0.00018229,2]
[378727691,1754993438150,-562.75,0.00018229,2]
[378727692,1754993438159,-330.60084364,0.00018229,2]
[378727693,1754993438169,-460.0,0.00018229,2]
[378727694,1754993438180,-1806.29,0.00018229,2]
[378727695,1754993438189,-1411.06,0.00018229,2]
[378727696,1754993438199,-460.0,0.00018229,2]
[378727697,1754993438209,-460.0,0.00018229,2]
[378727698,1754993438218,-461.65607098,0.00018229,2]
[378727699,1754993438227,-2095.73,0.00018229,2]
[378727700,1754993438237,-460.0,0.00018229,2]
[378727701,1754993438246,-460.0,0.00018229,2]
[378727702,1754993438255,-460.0,0.00018229,2]
[378727703,1754993438265,-460.0,0.00018229,2]
[378727704,1754993438274,-1235.62,0.00018229,2]
[378727705,1754993438284,-460.0,0.00018229,2]
[378727706,1754993438293,-460.0,0.00018229,2]
[378727707,1754993438302,-460.0,0.00018229,2]
[378727708,1754993438311,-460.0,0.00018229,2]
[378727709,1754993438321,-1123.22,0.00018229,2]
[378727710,1754993438331,-1069.94,0.00018229,2]
[378727711,1754993438340,-1398.29,0.00018229,2]
[378727712,1754993438349,-460.0,0.00018229,2]
[378727713,1754993438358,-500.0,0.00018229,2]
[378727714,1754993438367,-334.43306053,0.00018229,2]
[378727715,1754993438377,-460.0,0.00018229,2]
[378727716,1754993438386,-460.0,0.00018229,2]
[378727717,1754993438395,-807.64,0.00018229,2]
[378727718,1754993438405,-244.11400597,0.00018229,2]
[378727719,1754993438415,-240.07473995,0.0001823,2]
[378727720,1754993438425,-460.0,0.0001823,2]
[378727721,1754993438435,-460.0,0.0001823,2]
[378727722,1754993438445,-460.0,0.0001823,2]
[378727723,1754993438454,-492.35,0.0001823,2]
[378727724,1754993438464,-460.0,0.0001823,2]
[378727725,1754993438473,-460.0,0.0001823,2]
[378727726,1754993438483,-463.66717855,0.0001823,2]
[378727727,1754993438493,-460.0,0.0001823,2]
[378727728,1754993438502,-460.0,0.0001823,2]
[378727729,1754993438511,-460.0,0.0001823,2]
[378727730,1754993438521,-460.0,0.0001823,2]
[378727731,1754993438530,-461.95116986,0.0001823,2]
[378727732,1754993438540,-460.0,0.0001823,2]
[378727733,1754993438549,-528.75,0.0001823,2]
[378727734,1754993438559,-460.0,0.0001823,2]
[378727735,1754993438569,-808.18,0.0001823,2]
[378727736,1754993438578,-460.0,0.0001823,2]
[378727737,1754993438588,-244.62174594,0.0001823,2]
[378727738,1754993438597,-460.0,0.0001823,2]
[378727739,1754993438607,-596.24,0.0001823,2]
[378727740,1754993438616,-460.0,0.0001823,2]
[378727741,1754993438625,-460.0,0.0001823,2]
[378727742,1754993438633,-460.0,0.0001823,2]
[378727743,1754993438642,-460.0,0.0001823,2]
[378727744,1754993438651,-460.0,0.0001823,2]
[378727745,1754993438661,-460.0,0.0001823,2]
[378727746,1754993438670,-460.0,0.0001823,2]
[378727747,1754993438680,-463.85417151,0.0001823,2]
[378727748,1754993438689,-460.0,0.0001823,2]
[378727749,1754993438700,-465.54516556,0.0001823,2]
[378727750,1754993438713,-460.0,0.0001823,2]
[378727751,1754993438722,-460.0,0.0001823,2]
[378727752,1754993438731,-460.0,0.0001823,2]
[378727753,1754993438740,-460.0,0.0001823,2]
[378727754,1754993438749,-213.10423497,0.0001823,2]
[378727755,1754993438759,-460.0,0.0001823,2]
[378727756,1754993438768,-460.0,0.0001823,2]
[378727757,1754993438777,-460.69102457,0.0001823,2]
[378727758,1754993438787,-460.0,0.0001823,2]
[378727759,1754993438796,-462.43664672,0.0001823,2]
[378727760,1754993438805,-460.0,0.0001823,2]
[378727761,1754993438815,-460.0,0.0001823,2]
[378727762,1754993438824,-460.0,0.0001823,2]
[378727763,1754993438834,-509.85614979,0.0001823,2]
[378727764,1754993438843,-460.0,0.0001823,2]
[378727765,1754993438852,-460.0,0.0001823,2]
[378727766,1754993438861,-460.0,0.0001823,2]
[378727767,1754993438871,-460.0,0.0001823,2]
[378727768,1754993438880,-542.92,0.0001823,2]
[378727769,1754993438889,-275.30961422,0.0001823,2]
[378727770,1754993438899,-460.0,0.0001823,2]
[378727771,1754993438909,-460.0,0.0001823,2]
[378727772,1754993438918,-463.86,0.0001823,2]
[378727773,1754993438927,-460.0,0.0001823,2]
[378727774,1754993438938,-463.16,0.0001823,2]
[378727775,1754993438952,-460.0,0.0001823,2]
[378727776,1754993438962,-460.0,0.0001823,2]
[378727777,1754993438971,-460.0,0.0001823,2]
[378727778,1754993438981,-813.71,0.0001823,2]
[378727779,1754993438991,-460.0,0.0001823,2]
[378727780,1754993439001,-628.94,0.0001823,2]
[378727781,1754993439010,-460.0,0.0001823,2]
[378727782,1754993439020,-460.0,0.0001823,2]
[378727783,1754993439030,-460.0,0.0001823,2]
[378727784,1754993439039,-460.0,0.0001823,2]
[378727785,1754993439048,-460.0,0.0001823,2]
[378727786,1754993439058,-460.0,0.0001823,2]
[378727787,1754993439067,-460.0,0.0001823,2]
[378727788,1754993439076,-460.0,0.0001823,2]
[378727789,1754993439085,-460.0,0.0001823,2]
[378727790,1754993439094,-460.0,0.0001823,2]
[378727791,1754993439104,-269.2830476,0.0001823,2]
[378727792,1754993439114,-460.0,0.0001823,2]
[378727793,1754993439124,-460.0,0.0001823,2]
[378727794,1754993439133,-460.0,0.0001823,2]
[378727795,1754993439142,-460.0,0.0001823,2]
[378727796,1754993439151,-460.0,0.0001823,2]
[378727797,1754993439160,-460.0,0.0001823,2]
[378727798,1754993439170,-651.29,0.0001823,2]
[378727799,1754993439179,-433.50657445,0.0001823,2]
[378727800,1754993439188,-460.0,0.0001823,2]
[378727801,1754993439198,-832.44,0.0001823,2]
[378727802,1754993439208,-460.0,0.0001823,2]
[378727803,1754993439217,-462.31218879,0.0001823,2]
[378727804,1754993439227,-460.0,0.0001823,2]
[378727805,1754993439237,-493.22,0.0001823,2]
[378727806,1754993439247,-460.0,0.0001823,2]
[378727807,1754993439256,-460.0,0.0001823,2]
[378727808,1754993439265,-460.0,0.0001823,2]
[378727809,1754993439274,-460.0,0.0001823,2]
[378727810,1754993439283,-460.0,0.0001823,2]
[378727812,1754993439293,-1204.9,0.0001823,2]
[378727814,1754993439302,-720.75,0.0001823,2]
[378727815,1754993439311,-460.0,0.0001823,2]
[378727816,1754993439320,-460.0,0.0001823,2]
[378727817,1754993439329,-460.0,0.0001823,2]
[378727818,1754993439338,-460.0,0.0001823,2]
[378727819,1754993439348,-460.0,0.0001823,2]
[378727820,1754993439358,-1215.91,0.0001823,2]
[378727821,1754993439367,-463.90207571,0.0001823,2]
[378727822,1754993439376,-460.0,0.0001823,2]
[378727823,1754993439386,-460.0,0.0001823,2]
[378727824,1754993439395,-738.4,0.0001823,2]
[378727825,1754993439405,-460.0,0.0001823,2]
[378727826,1754993439414,-460.0,0.0001823,2]
[378727827,1754993439423,-460.0,0.0001823,2]
[378727828,1754993439433,-460.0,0.0001823,2]
[378727829,1754993439442,-462.63550438,0.0001823,2]
[378727830,1754993439451,-661.18,0.0001823,2]
[378727831,1754993439461,-460.0,0.0001823,2]
[378727832,1754993439470,-460.0,0.0001823,2]
[378727833,1754993439479,-460.0,0.0001823,2]
[378727834,1754993439488,-448.27668926,0.0001823,2]
[378727835,1754993439498,-460.0,0.0001823,2]
[378727837,1754993439507,-460.0,0.0001823,2]
[378727839,1754993439516,-460.0,0.0001823,2]
[378727840,1754993439525,-461.53369864,0.0001823,2]
[378727841,1754993439534,-637.48,0.0001823,2]
[378727842,1754993439543,-460.0,0.0001823,2]
[378727843,1754993439553,-841.31,0.0001823,2]
[378727844,1754993439562,-460.0,0.0001823,2]
[378727845,1754993439571,-161.7571295,0.0001823,2]
[378727846,1754993439580,-530.86,0.0001823,2]
[378727847,1754993439589,-552.46,0.0001823,2]
[378727848,1754993439599,-560.65,0.0001823,2]
[378727849,1754993439609,-461.62246511,0.0001823,2]
[378727850,1754993439619,-1222.27,0.0001823,2]
[378727851,1754993439628,-460.0,0.0001823,2]
[378727852,1754993439637,-635.15,0.0001823,2]
[378727853,1754993439647,-460.0,0.0001823,2]
[378727854,1754993439656,-460.0,0.0001823,2]
[378727855,1754993439665,-299.1726966,0.0001823,2]
[378727856,1754993439674,-460.0,0.0001823,2]
[378727857,1754993439685,-463.69190026,0.0001823,2]
[378727858,1754993439695,-460.0,0.0001823,2]
[378727859,1754993439704,-460.0,0.0001823,2]
[378727860,1754993439713,-11752.43,0.0001823,2]
[378727861,1754993439723,-460.0,0.0001823,2]
[378727862,1754993439732,-1471.17,0.0001823,2]
[378727863,1754993439741,-460.0,0.0001823,2]
[378727864,1754993439750,-460.0,0.0001823,2]
[378727865,1754993439759,-464.64997532,0.0001823,2]
[378727866,1754993439769,-3385.92,0.0001823,2]
[378727867,1754993439778,-460.0,0.0001823,2]
[378727868,1754993439787,-460.0,0.0001823,2]
[378727869,1754993439797,-779.18,0.0001823,2]
[378727870,1754993439806,-460.0,0.0001823,2]
[378727871,1754993439815,-460.0,0.0001823,2]
[378727872,1754993439824,-461.38762913,0.0001823,2]
[378727873,1754993439833,-460.0,0.0001823,2]
[378727874,1754993439843,-460.0,0.0001823,2]
[378727875,1754993439852,-460.0,0.0001823,2]
[378727876,1754993439861,-664.15,0.0001823,2]
[378727877,1754993439871,-460.0,0.0001823,2]
[378727878,1754993439880,-514.92560196,0.0001823,2]
[378727879,1754993439889,-496.38115094,0.0001823,2]
[378727880,1754993439899,-460.0,0.0001823,2]
[378727881,1754993439909,-460.0,0.0001823,2]
[378727882,1754993439918,-234.19080196,0.0001823,2]
[378727883,1754993439927,-4114.15,0.0001823,2]
[378727884,1754993439938,-506.59,0.0001823,2]
[378727885,1754993439950,-460.0,0.0001823,2]
[378727886,1754993439960,-460.45790305,0.0001823,2]
[378727887,1754993439969,-460.0,0.0001823,2]
[378727889,1754993439978,-466.54083904,0.0001823,2]
[378727891,1754993439988,-594.05,0.0001823,2]
[378727892,1754993439997,-570.73890443,0.0001823,2]
[378727893,1754993440006,-2981.76,0.0001823,2]
[378727894,1754993440016,-460.0,0.0001823,2]
[378727895,1754993440026,-460.0,0.0001823,2]
[378727896,1754993440035,-460.0,0.0001823,2]
[378727897,1754993440044,-460.0,0.0001823,2]
[378727898,1754993440053,-460.0,0.0001823,2]
[378727899,1754993440062,-460.0,0.0001823,2]
[378727900,1754993440071,-653.57,0.0001823,2]
[378727901,1754993440080,-460.0,0.0001823,2]
[378727902,1754993440089,-1339.5,0.0001823,2]
[378727903,1754993440098,-462.60076232,0.0001823,2]
[378727904,1754993440107,-460.0,0.0001823,2]
[378727905,1754993440117,-460.0,0.0001823,2]
[378727906,1754993440126,-460.0,0.0001823,2]
[378727907,1754993440135,-460.0,0.0001823,2]
[378727908,1754993440144,-460.0,0.0001823,2]
[378727909,1754993440153,-1857.89,0.0001823,2]
[378727910,1754993440162,-462.23337633,0.0001823,2]
[378727911,1754993440171,-460.0,0.0001823,2]
[378727912,1754993440181,-461.9780516,0.0001823,2]
[378727913,1754993440190,-460.0,0.0001823,2]
[378727914,1754993440199,-1593.29,0.0001823,2]
[378727915,1754993440209,-1132.56,0.0001823,2]
[378727916,1754993440219,-460.0,0.0001823,2]
[378727917,1754993440228,-1969.66,0.0001823,2]
[378727918,1754993440238,-460.0,0.0001823,2]
[378727919,1754993440247,-460.0,0.0001823,2]
[378727920,1754993440256,-938.58,0.0001823,2]
[378727921,1754993440265,-462.00554594,0.0001823,2]
[378727922,1754993440275,-460.0,0.0001823,2]
[378727923,1754993440284,-500.0,0.0001823,2]
[378727924,1754993440294,-283293.81825054,0.00018231,2]
[378727925,1754993440305,-3109.74875135,0.00018292,2]
[378727926,1754993440314,-151.0,0.000183,2]
[378727927,1754993440323,-151.0,0.000183,2]
[378727928,1754993440332,-460.0,0.00018329,2]
[378727929,1754993440341,-773.25297303,0.00018329,2]
[378727930,1754993440350,-461.97977216,0.00018329,2]
[378727931,1754993440359,-416.68215033,0.00018329,2]
[378727932,1754993440369,-460.0,0.00018329,2]
[378727933,1754993440378,-483.21449003,0.00018329,2]
[378727934,1754993440388,-2476.3,0.00018329,2]
[378727935,1754993440397,-1029.39,0.00018329,2]
[378727936,1754993440407,-460.0,0.00018329,2]
[378727937,1754993440416,-2758.56,0.00018329,2]
[378727938,1754993440425,-460.0,0.00018329,2]
[378727939,1754993440436,-630.36,0.0001833,2]
[378727940,1754993440445,-257.01963456,0.0001833,2]
[378727941,1754993440454,-677.65,0.0001833,2]
[378727942,1754993440464,-1448.01,0.0001833,2]
[378727943,1754993440473,-460.0,0.0001833,2]
[378727944,1754993440483,-460.0,0.0001833,2]
[378727945,1754993440492,-460.0,0.0001833,2]
[378727946,1754993440502,-460.0,0.0001833,2]
[378727947,1754993440511,-460.0,0.0001833,2]
[378727948,1754993440521,-870.6,0.0001833,2]
[378727949,1754993440531,-460.0,0.0001833,2]
[378727950,1754993440540,-460.0,0.0001833,2]
[378727951,1754993440550,-460.0,0.0001833,2]
[378727952,1754993440559,-500.0,0.0001833,2]
[378727953,1754993440569,-500.0,0.0001833,2]
[378727954,1754993440579,-500.0,0.0001833,2]
[378727955,1754993440589,-286.76018713,0.0001833,2]
[378727956,1754993440598,-548.95,0.0001833,2]
[378727957,1754993440608,-460.0,0.0001833,2]
[378727958,1754993440618,-725.32,0.0001833,2]
[378727959,1754993440627,-460.0,0.0001833,2]
[378727960,1754993440637,-460.0,0.0001833,2]
[378727961,1754993440647,-460.0,0.0001833,2]
[378727962,1754993440656,-460.0,0.0001833,2]
[378727963,1754993440666,-460.0,0.0001833,2]
[378727964,1754993440676,-653.95,0.0001833,2]
[378727965,1754993440687,-460.0,0.0001833,2]
[378727966,1754993440696,-460.0,0.0001833,2]
[378727967,1754993440706,-460.0,0.0001833,2]
[378727968,1754993440715,-460.0,0.0001833,2]
[378727969,1754993440725,-460.0,0.0001833,2]
[378727970,1754993440734,-491.99,0.0001833,2]
[378727971,1754993440744,-460.0,0.0001833,2]
[378727972,1754993440753,-1331.42,0.0001833,2]
[378727973,1754993440762,-599.19,0.0001833,2]
[378727974,1754993440772,-460.0,0.0001833,2]
[378727975,1754993440781,-460.0,0.0001833,2]
[378727976,1754993440791,-460.0,0.0001833,2]
[378727977,1754993440801,-460.0,0.0001833,2]
[378727978,1754993440811,-460.0,0.0001833,2]
[378727979,1754993440820,-460.0,0.0001833,2]
[378727980,1754993440829,-460.0,0.0001833,2]
[378727981,1754993440839,-460.0,0.0001833,2]
[378727982,1754993440848,-460.0,0.0001833,2]
[378727983,1754993440857,-1920.48,0.0001833,2]
[378727984,1754993440867,-460.0,0.0001833,2]
[378727985,1754993440876,-460.0,0.0001833,2]
[378727986,1754993440886,-460.0,0.0001833,2]
[378727987,1754993440896,-460.0,0.0001833,2]
[378727988,1754993440905,-451.82759391,0.0001833,2]
[378727989,1754993440914,-460.0,0.0001833,2]
[378727990,1754993440924,-460.0,0.0001833,2]
[378727991,1754993440934,-460.0,0.0001833,2]
[378727992,1754993440946,-460.0,0.0001833,2]
[378727993,1754993440956,-460.0,0.0001833,2]
[378727994,1754993440966,-460.0,0.0001833,2]
[378727995,1754993440975,-460.0,0.0001833,2]
[378727996,1754993440985,-460.0,0.0001833,2]
[378727997,1754993440994,-460.0,0.0001833,2]
[378727998,1754993441004,-460.0,0.0001833,2]
[378727999,1754993441014,-460.0,0.0001833,2]
[378728000,1754993441023,-513.76189863,0.0001833,2]
[378728001,1754993441033,-460.0,0.00018331,2]
[378728002,1754993441042,-463.93938312,0.00018331,2]
[378728003,1754993441051,-460.0,0.00018331,2]
[378728004,1754993441060,-463.54757011,0.00018331,2]
[378728005,1754993441069,-460.0,0.00018331,2]
[378728006,1754993441078,-527.48,0.00018331,2]
[378728007,1754993441088,-460.0,0.00018331,2]
[378728008,1754993441097,-460.0,0.00018331,2]
[378728009,1754993441106,-460.0,0.00018331,2]
[378728010,1754993441115,-460.0,0.00018331,2]
[378728011,1754993441125,-460.0,0.00018331,2]
[378728012,1754993441134,-560.27666211,0.00018331,2]
[378728013,1754993441143,-460.0,0.00018331,2]
[378728014,1754993441152,-460.0,0.00018331,2]
[378728015,1754993441162,-464.41291571,0.00018331,2]
[378728016,1754993441171,-460.0,0.00018331,2]
[378728017,1754993441181,-460.0,0.00018331,2]
[378728018,1754993441190,-460.0,0.00018331,2]
[378728019,1754993441199,-463.8079176,0.00018331,2]
[378728020,1754993441366,-460.0,0.00018331,2]
[378728021,1754993441376,-460.0,0.00018331,2]
[378728022,1754993441386,-460.0,0.00018331,2]
[378728023,1754993441395,-460.0,0.00018331,2]
[378728024,1754993441405,-460.0,0.00018331,2]
[378728025,1754993441414,-460.0,0.00018331,2]
[378728026,1754993441423,-460.0,0.00018331,2]
[378728027,1754993441434,-460.0,0.00018331,2]
[378728028,1754993441443,-460.0,0.00018331,2]
[378728029,1754993441452,-460.0,0.00018331,2]
[378728030,1754993441462,-460.0,0.00018331,2]
[378728031,1754993441471,-460.0,0.00018331,2]
[378728032,1754993441480,-463.43118184,0.00018331,2]
[378728033,1754993441489,-500.0,0.00018331,2]
[378728034,1754993441498,-460.0,0.00018331,2]
[378728035,1754993441507,-460.0,0.00018331,2]
[378728036,1754993441517,-460.0,0.00018331,2]
[378728037,1754993441526,-527.31591432,0.00018331,2]
[378728038,1754993441535,-460.0,0.00018331,2]
[378728039,1754993441545,-460.0,0.00018331,2]
[378728040,1754993441554,-460.0,0.00018331,2]
[378728041,1754993441564,-462.00861885,0.00018331,2]
[378728042,1754993441573,-460.0,0.00018331,2]
[378728043,1754993441583,-460.0,0.00018331,2]
[378728044,1754993441592,-460.0,0.00018331,2]
[378728045,1754993441601,-460.0,0.00018331,2]
[378728046,1754993441610,-460.0,0.00018331,2]
[378728047,1754993441620,-460.0,0.00018331,2]
[378728048,1754993441630,-293.82318843,0.00018331,2]
[378728049,1754993441639,-460.0,0.00018331,2]
[378728050,1754993441648,-460.0,0.00018331,2]
[378728051,1754993441658,-460.0,0.00018331,2]
[378728052,1754993441667,-500.0,0.00018331,2]
[378728053,1754993441676,-460.0,0.00018331,2]
[378728054,1754993441687,-522.73120998,0.00018331,2]
[378728055,1754993441696,-460.0,0.00018331,2]
[378728056,1754993441706,-460.0,0.00018331,2]
[378728057,1754993441715,-460.0,0.00018331,2]
[378728058,1754993441724,-460.0,0.00018331,2]
[378728059,1754993441734,-460.0,0.00018331,2]
[378728060,1754993441743,-460.0,0.00018331,2]
[378728061,1754993441753,-292.71022631,0.00018331,2]
[378728062,1754993441762,-460.0,0.00018331,2]
[378728063,1754993441771,-461.13060928,0.00018331,2]
[378728064,1754993441780,-460.0,0.00018331,2]
[378728065,1754993441790,-460.0,0.00018331,2]
[378728066,1754993441799,-460.0,0.00018331,2]
[378728067,1754993441808,-460.0,0.00018331,2]
[378728068,1754993441817,-460.0,0.00018331,2]
[378728069,1754993441826,-460.0,0.00018331,2]
[378728070,1754993441836,-460.0,0.00018331,2]
[378728071,1754993441845,-460.0,0.00018331,2]
[378728072,1754993441854,-460.0,0.00018331,2]
[378728073,1754993441863,-460.0,0.00018331,2]
[378728074,1754993441872,-460.0,0.00018331,2]
[378728075,1754993441881,-460.0,0.00018331,2]
[378728076,1754993441891,-463.20978813,0.00018331,2]
[378728077,1754993441900,-460.0,0.00018331,2]
[378728078,1754993441910,-460.0,0.00018331,2]
[378728079,1754993441919,-885.56,0.00018331,2]
[378728080,1754993441928,-462.31362634,0.00018331,2]
[378728081,1754993441938,-461.23516067,0.00018331,2]
[378728082,1754993441952,-213.00258013,0.00018331,2]
[378728083,1754993441962,-263.34918321,0.00018331,2]
[378728084,1754993441972,-460.0,0.00018331,2]
[378728085,1754993441982,-448.6738194,0.00018331,2]
[378728086,1754993441992,-487.59517202,0.00018331,2]
[378728087,1754993442002,-460.0,0.00018331,2]
[378728088,1754993442011,-506.97043766,0.00018331,2]
[378728089,1754993442022,-460.0,0.00018331,2]
[378728090,1754993442031,-460.0,0.00018331,2]
[378728091,1754993442041,-460.0,0.00018331,2]
[378728092,1754993442050,-460.0,0.00018331,2]
[378728093,1754993442060,-751.23,0.00018331,2]
[378728094,1754993442069,-460.0,0.00018331,2]
[378728095,1754993442079,-460.0,0.00018331,2]
[378728096,1754993442088,-322.55528456,0.00018331,2]
[378728097,1754993442097,-461.95410795,0.00018331,2]
[378728098,1754993442107,-463.30211484,0.00018331,2]
[378728099,1754993442116,-460.0,0.00018331,2]
[378728100,1754993442127,-460.0,0.00018331,2]
[378728101,1754993442136,-460.0,0.00018331,2]
[378728102,1754993442145,-158.47119424,0.00018331,2]
[378728103,1754993442155,-460.0,0.00018331,2]
[378728104,1754993442164,-460.0,0.00018331,2]
[378728105,1754993442173,-460.0,0.00018331,2]
[378728106,1754993442183,-462.47791391,0.00018331,2]
[378728107,1754993442193,-460.0,0.00018331,2]
[378728108,1754993442203,-1043.95,0.0001834,2]
[378728109,1754993442213,-1043.95,0.0001834,2]
[378728110,1754993442222,-1043.95,0.0001834,2]
[378728111,1754993442232,-1043.95,0.0001834,2]
[378728112,1754993442241,-1043.95,0.0001834,2]
[378728113,1754993442250,-1043.95,0.00018341,2]
[378728114,1754993442259,-1043.95,0.00018341,2]
[378728115,1754993442268,-1043.95,0.00018341,2]
[378728117,1754993442278,-1043.95,0.00018341,2]
[378728118,1754993442287,-1043.95,0.00018341,2]
[378728119,1754993442296,-10000.0,0.00018342,2]
[378728120,1754993442305,-1043.95,0.00018342,2]
[378728121,1754993442315,-1043.95,0.00018342,2]
[378728122,1754993442324,-1043.95,0.00018342,2]
[378728124,1754993442333,-1043.95,0.00018342,2]
[378728125,1754993442342,-1043.95,0.00018342,2]
[378728126,1754993442352,-1043.95,0.00018342,2]
[378728127,1754993442361,-1043.95,0.00018342,2]
[378728128,1754993442370,-1043.95,0.00018342,2]
[378728129,1754993442379,-1043.95,0.00018342,2]
[378728130,1754993442388,-1043.95,0.00018342,2]
[378728131,1754993442397,-1043.95,0.00018342,2]
[378728132,1754993442407,-1043.95,0.00018342,2]
[378728133,1754993442416,-1043.95,0.00018342,2]
[378728134,1754993442426,-1044.01272292,0.00018342,2]
[378728135,1754993442436,-500.77869479,0.00018373,2]
[378728136,1754993442445,-497.95273861,0.00018373,2]
[378728137,1754993442455,-500.37522979,0.00018373,2]
[378728138,1754993442464,-500.0,0.00018373,2]
[378728139,1754993442474,-420.18874009,0.00018373,2]
[378728140,1754993442483,-500.0,0.00018373,2]
[378728141,1754993442493,-542.61847519,0.00018373,2]
[378728142,1754993442502,-500.0,0.00018373,2]
[378728143,1754993442512,-500.0,0.00018373,2]
[378728144,1754993442521,-500.0,0.00018373,2]
[378728145,1754993442532,-500.0,0.00018373,2]
[378728146,1754993442541,-500.0,0.00018373,2]
[378728147,1754993442550,-160.1817426,0.00018373,2]
[378728148,1754993442559,-515.75468285,0.00018373,2]
[378728150,1754993442569,-500.0,0.00018373,2]
[378728152,1754993442578,-503.33007518,0.00018373,2]
[378728154,1754993442588,-500.0,0.00018373,2]
[378728157,1754993442598,-500.2933505,0.00018373,2]
[378728159,1754993442607,-500.0,0.00018373,2]
[378728160,1754993442616,-516.60603465,0.00018373,2]
[378728163,1754993442625,-500.0,0.00018373,2]
[378728164,1754993442635,-500.0,0.00018373,2]
[378728165,1754993442644,-155.5848548,0.00018373,2]
[378728166,1754993442654,-500.0,0.00018373,2]
[378728167,1754993442663,-500.79344237,0.00018373,2]
[378728168,1754993442673,-500.0,0.00018373,2]
[378728169,1754993442683,-358.93501628,0.00018373,2]
[378728170,1754993442692,-500.0,0.00018373,2]
[378728171,1754993442701,-500.0,0.00018373,2]
[378728172,1754993442710,-158.08822894,0.00018373,2]
[378728173,1754993442719,-500.0,0.00018373,2]
[378728174,1754993442728,-500.0,0.00018373,2]
[378728175,1754993442738,-500.41880227,0.00018373,2]
[378728176,1754993442747,-500.0,0.00018373,2]
[378728177,1754993442756,-500.0,0.00018373,2]
[378728178,1754993442765,-500.0,0.00018373,2]
[378728179,1754993442774,-500.56067958,0.00018373,2]
[378728180,1754993442783,-500.0,0.00018373,2]
[378728181,1754993442792,-500.0,0.00018373,2]
[378728182,1754993442801,-500.13962491,0.00018373,2]
[378728184,1754993442811,-500.0,0.00018373,2]
[378728185,1754993442819,-294.0,0.00018391,2]
[378728186,1754993442829,-151.0,0.000184,2]
[378728187,1754993442838,-151.0,0.000184,2]
[378728188,1754993442846,-179.87408814,0.00018448,2]
[378728189,1754993442855,-3109.74875135,0.00018455,2]
[378728190,1754993442865,-460.0,0.00018494,2]
[378728191,1754993442874,-535.68,0.00018494,2]
[378728192,1754993442883,-867.55,0.00018494,2]
[378728193,1754993442892,-460.0,0.00018494,2]
[378728194,1754993442901,-1793.58,0.00018494,2]
[378728195,1754993442911,-4125.85,0.00018494,2]
[378728196,1754993442920,-460.0,0.00018494,2]
[378728197,1754993442929,-534.9,0.00018494,2]
[378728198,1754993442939,-702.15,0.00018494,2]